bitfinex/quotes_ETHUSD_20240916
["timestamp","ask_amount","ask_price","bid_price","bid_amount"]
[1726459793861,17.74728227,2282.5,2282.4,1.52903233]
[1726459795888,14.52312393,2282.5,2282.4,1.52903233]
[1726459798805,16.35111035,2282.5,2282.4,1.52903233]
[1726459800658,13.56302393,2282.5,2282.4,1.52903233]
[1726459800863,9.18186393,2282.5,2282.4,4.02543233]
[1726459801058,13.56302393,2282.5,2282.4,4.02543233]
[1726459801285,13.56302393,2282.5,2282.4,1.52903233]
[1726459806787,1.80070393,2282.5,2282.4,3.97463233]
[1726459806993,2.94773711,2282.5,2282.4,4.37209556]
[1726459807508,2.94773711,2282.5,2282.4,3.97463233]
[1726459807799,4.5654188,2282.5,2282.4,3.97463233]
[1726459808166,7.5654188,2282.5,2282.4,3.97463233]
[1726459808997,4.80070393,2282.5,2282.4,3.97463233]
[1726459809381,3.18302224,2282.5,2282.4,3.97463233]
[1726459809586,3.18302224,2282.5,2282.4,4.81902878]
[1726459809795,2.48585891,2282.5,2282.4,13.58172878]
[1726459810114,2.02520856,2282.5,2282.4,13.58172878]
[1726459810404,7.60621672,2283.0,2282.4,13.58172878]
[1726459810405,6.29194995,2283.3,2282.6,2.312]
[1726459810568,6.29194995,2283.3,2282.4,2.37342878]
[1726459810569,1.84192959,2282.8,2282.7,8.52075642]
[1726459810772,1.3804282,2282.8,2282.7,6.20875642]
[1726459810994,2.30255861,2283.0,2282.9,4.38039]
[1726459811387,2.30255861,2283.1,2282.9,4.38039]
[1726459811580,2.30255861,2283.1,2283.0,6.6922]
[1726459811801,2.30255861,2283.2,2283.0,3.04330756]
[1726459812023,2.30255861,2283.2,2283.1,2.3774]
[1726459812303,2.30255861,2283.3,2283.1,2.3774]
[1726459812711,2.30255861,2283.4,2283.2,2.3716]
[1726459813516,6.68186861,2283.5,2283.2,2.3716]
[1726459813697,2.30255861,2283.4,2283.2,2.3716]
[1726459815017,1.37698958,2283.3,2283.2,2.3716]
[1726459817463,0.91710477,2283.3,2283.2,2.3716]
[1726459817591,1.37698958,2283.4,2283.2,2.3716]
[1726459818111,1.52917424,2283.3,2283.2,2.3716]
[1726459818322,0.15218466,2283.3,2283.2,2.3716]
[1726459818493,1.06910687,2283.3,2283.2,2.3716]
[1726459819424,0.15218466,2283.3,2283.2,3.046778]
[1726459819716,0.15218466,2283.3,2283.2,2.3716]
[1726459820290,1.06910687,2283.3,2283.2,2.3716]
[1726459821693,0.15218466,2283.3,2283.2,2.3716]
[1726459821898,0.15218466,2283.3,2283.2,7.426587]
[1726459822200,0.91692221,2283.5,2283.2,7.426587]
[1726459822392,0.15338842,2283.3,2283.2,7.426587]
[1726459822593,0.91692221,2283.5,2283.2,7.426587]
[1726459822899,0.15338842,2283.3,2283.2,2.3716]
[1726459825622,4.53300842,2283.3,2282.9,2.2654]
[1726459825790,9.82968063,2283.3,2282.9,2.2654]
[1726459825992,4.38002,2283.1,2282.9,2.2654]
[1726459826211,4.38002,2283.1,2282.7,2.2654]
[1726459826431,4.53372842,2283.0,2282.7,2.2654]
[1726459827495,4.38041,2282.9,2282.7,2.2654]
[1726459827701,5.29733221,2282.9,2282.5,2.2654]
[1726459828115,0.15338842,2282.8,2282.5,2.2654]
[1726459831022,0.15338842,2282.8,2282.7,4.38077]
[1726459831224,0.91692221,2283.0,2282.7,6.66677]
[1726459831422,0.15385953,2282.9,2282.7,6.66677]
[1726459831740,0.91692221,2283.0,2282.7,6.66677]
[1726459831936,0.1980654,2282.8,2282.7,6.66677]
[1726459832245,0.91692221,2283.0,2282.8,2.286]
[1726459832556,0.19164585,2282.9,2282.8,6.66649]
[1726459832864,0.91692221,2283.1,2282.8,6.66649]
[1726459833060,0.19164585,2282.9,2282.8,6.66649]
[1726459833235,0.91692221,2283.1,2282.8,2.286]
[1726459833437,0.19164585,2283.0,2282.8,2.286]
[1726459833961,1.10856806,2283.0,2282.8,2.286]
[1726459834771,0.19164585,2283.0,2282.8,2.286]
[1726459835250,1.10856806,2283.0,2282.8,2.286]
[1726459835748,0.19164585,2283.0,2282.8,2.286]
[1726459836254,1.10856806,2283.0,2282.8,2.286]
[1726459836466,0.91692221,2282.9,2282.8,2.286]
[1726459836648,4.10856806,2283.0,2282.8,2.286]
[1726459836827,1.10856806,2283.0,2282.8,2.286]
[1726459838230,0.91692221,2282.9,2282.8,2.286]
[1726459838565,1.10872544,2282.9,2282.8,2.286]
[1726459838739,0.19180323,2282.9,2282.8,2.286]
[1726459839060,0.19180323,2282.9,2282.8,6.66658]
[1726459839832,0.19180323,2282.9,2282.8,2.286]
[1726459840434,1.10872544,2282.9,2282.8,2.286]
[1726459841339,0.19180323,2282.9,2282.6,4.38087]
[1726459841569,0.91705152,2282.8,2282.7,4.38067]
[1726459841773,1.10885475,2282.9,2282.7,4.38067]
[1726459842084,0.91705152,2282.9,2282.8,2.3758]
[1726459842585,0.91717584,2282.9,2282.8,2.3758]
[1726459843155,1.37698958,2282.9,2282.8,2.3758]
[1726459843480,1.37698958,2283.0,2282.8,2.3758]
[1726459843645,0.1917088,2282.9,2282.8,2.3758]
[1726459843841,1.56869838,2282.9,2282.8,7.432047]
[1726459844043,1.10906419,2282.9,2282.8,7.432047]
[1726459844269,0.1917088,2282.9,2282.8,9.436827]
[1726459844477,0.1917088,2282.9,2282.8,11.899027]
[1726459844843,0.91735539,2283.1,2283.0,4.3802]
[1726459845045,0.91735539,2283.2,2283.0,6.8424]
[1726459845276,0.91735539,2283.1,2283.0,6.8424]
[1726459845479,0.91735539,2283.2,2283.1,4.38]
[1726459847788,1.37698958,2283.3,2283.1,4.38]
[1726459848009,0.91778317,2283.2,2283.1,4.38]
[1726459848353,0.91778317,2283.2,2283.0,12.57979531]
[1726459848662,1.37698958,2283.2,2283.1,1.41657237]
[1726459849368,1.37698958,2283.2,2283.0,6.8423]
[1726459849578,0.91824421,2283.1,2283.0,6.8423]
[1726459850485,1.37698958,2283.2,2283.0,6.8423]
[1726459851088,3.21084494,2283.3,2283.1,4.38]
[1726459851302,1.37698958,2283.3,2283.2,1.12223]
[1726459851459,1.83385536,2283.3,2283.1,4.38]
[1726459851661,1.37819663,2283.2,2283.1,4.38]
[1726459852382,1.83385536,2283.2,2283.1,4.38]
[1726459854693,1.83385536,2283.2,2283.0,6.8423]
[1726459854694,1.83385536,2283.2,2283.0,11.22239]
[1726459854878,1.3791247,2283.1,2283.0,6.84229]
[1726459855271,1.3791247,2283.1,2283.0,7.68511184]
[1726459855501,1.3791247,2283.1,2283.0,6.84229]
[1726459855708,1.83385536,2283.1,2282.9,4.38039]
[1726459855912,1.37947935,2283.0,2282.9,4.38039]
[1726459857565,0.91959956,2283.0,2282.9,16.11511297]
[1726459857771,0.91959956,2283.0,2282.9,15.00113697]
[1726459858704,1.1055272,2283.0,2282.9,15.00113697]
[1726459859810,1.1055272,2283.0,2282.9,11.04088]
[1726459859995,1.1055272,2283.0,2282.9,12.9790687]
[1726459862414,1.1055272,2283.0,2282.9,8.5986787]
[1726459866516,1.1055272,2283.0,2282.9,6.66049]
[1726459869713,1.1055272,2283.0,2282.9,11.04088]
[1726459869920,1.1055272,2283.0,2282.9,6.66049]
[1726459873300,1.1055272,2283.0,2282.9,11.04088]
[1726459876144,1.1055272,2283.0,2282.9,6.66049]
[1726459876342,1.1055272,2283.0,2282.9,11.04088]
[1726459876501,1.1055272,2283.0,2282.9,12.76577877]
[1726459878444,0.18592764,2283.0,2282.9,8.38538877]
[1726459878745,1.10569293,2283.0,2282.9,6.66049]
[1726459878947,1.10569293,2283.0,2282.9,11.04088]
[1726459879153,1.10569293,2283.0,2282.9,4.38039]
[1726459879338,1.10569293,2283.0,2282.9,8.76078]
[1726459879538,1.10569293,2283.0,2282.9,4.38039]
[1726459879919,1.10569293,2283.0,2282.9,8.76078]
[1726459880529,1.10569293,2283.0,2282.9,4.38039]
[1726459880728,1.10569293,2283.0,2282.9,8.76078]
[1726459881517,1.10569293,2283.0,2282.9,4.38039]
[1726459883228,0.18592764,2283.0,2282.9,4.38039]
[1726459883418,1.56540699,2283.0,2282.9,4.38039]
[1726459886031,1.56540699,2283.0,2282.9,8.76078]
[1726459886659,1.56540699,2283.0,2282.9,4.38039]
[1726459887570,1.56540699,2283.0,2282.9,8.76078]
[1726459887755,1.56540699,2283.0,2282.9,4.38039]
[1726459888062,1.56540699,2283.0,2282.9,8.76078]
[1726459888425,2.019783,2283.0,2282.9,4.38039]
[1726459888651,2.019783,2283.0,2282.9,8.76078]
[1726459888867,2.019783,2283.0,2282.9,4.38039]
[1726459889031,2.019783,2283.0,2282.9,8.76078]
[1726459889650,2.019783,2283.0,2282.9,4.38039]
[1726459889979,2.019783,2283.0,2282.9,10.58812774]
[1726459890477,0.18592764,2283.0,2282.9,10.58812774]
[1726459891246,2.02910516,2283.0,2282.9,10.58812774]
[1726459891444,0.18592764,2283.0,2282.9,18.55789051]
[1726459891644,1.10744631,2283.0,2282.9,23.48828051]
[1726459891975,0.18592764,2283.0,2282.9,21.34327513]
[1726459892140,0.18592764,2283.0,2282.9,22.73198572]
[1726459892342,0.92151867,2283.2,2283.1,15.4376]
[1726459892633,1.10149779,2283.2,2283.1,17.26494774]
[1726459892777,0.17997912,2283.2,2283.1,17.26494774]
[1726459892968,1.10149779,2283.2,2283.1,17.26494774]
[1726459893281,0.17997912,2283.2,2283.1,8.53074418]
[1726459893591,0.92151867,2283.3,2283.2,11.20032]
[1726459896464,0.87151867,2283.3,2283.2,11.20032]
[1726459897346,0.87151867,2283.3,2283.2,15.58013]
[1726459897559,0.87151867,2283.3,2283.2,17.41197202]
[1726459899414,3.75938505,2283.4,2283.2,10.59146202]
[1726459899575,1.38228505,2283.3,2283.2,8.75962]
[1726459899776,4.68045604,2283.4,2283.3,4.37962]
[1726459900585,4.68059685,2283.4,2283.3,4.37962]
[1726459903329,4.86057597,2283.4,2283.3,4.37962]
[1726459905021,2.48347597,2283.4,2283.3,6.20696774]
[1726459905222,2.48347597,2283.4,2283.3,14.10156551]
[1726459905612,2.02353806,2283.4,2283.3,14.10156551]
[1726459905934,0.17997912,2283.4,2283.3,14.10156551]
[1726459906133,1.56261351,2283.4,2283.3,14.10156551]
[1726459912849,0.17997912,2283.4,2283.3,14.10156551]
[1726459913049,1.56263459,2283.4,2283.3,14.10156551]
[1726459913964,1.56263459,2283.4,2283.3,11.64526551]
[1726459915282,2.02353806,2283.4,2283.3,11.64526551]
[1726459919459,2.02363444,2283.4,2283.3,11.64526551]
[1726459919681,2.02363444,2283.4,2283.3,10.58658774]
[1726459920757,0.17997912,2283.4,2283.3,10.58658774]
[1726459921367,0.17997912,2283.4,2283.3,6.20696774]
[1726459921569,2.48453212,2283.4,2283.3,6.20696774]
[1726459923504,2.48453212,2283.4,2283.1,5.9089]
[1726459923713,2.304553,2283.2,2283.1,5.9089]
[1726459923905,2.48521738,2283.2,2283.1,5.9089]
[1726459924233,0.18066438,2283.2,2283.1,1.529]
[1726459924942,5.1533636,2283.3,2283.1,1.529]
[1726459925093,0.18066438,2283.2,2283.1,1.529]
[1726459925430,5.1533636,2283.3,2283.1,1.529]
[1726459925635,2.51826438,2283.2,2283.1,1.529]
[1726459926428,6.85776461,2283.2,2283.1,1.529]
[1726459930543,6.85792013,2283.2,2283.1,1.529]
[1726459931035,6.85792013,2283.2,2283.1,3.35634774]
[1726459931615,6.85792013,2283.2,2283.1,1.529]
[1726459932720,4.52032013,2283.2,2283.1,7.73634774]
[1726459933051,0.18066438,2283.2,2283.1,7.73634774]
[1726459933346,2.76615729,2283.3,2283.1,8.94800851]
[1726459933547,0.17974717,2283.2,2283.1,7.73634774]
[1726459933713,4.34245124,2283.3,2283.1,7.73634774]
[1726459933914,0.17974717,2283.2,2283.1,7.73634774]
[1726459934128,4.34245124,2283.3,2283.1,7.73634774]
[1726459934339,0.17974717,2283.2,2283.1,7.73634774]
[1726459934541,4.34245124,2283.3,2283.1,7.73634774]
[1726459934744,0.17974717,2283.2,2283.1,7.73634774]
[1726459934918,4.34245124,2283.3,2283.1,7.73634774]
[1726459935119,4.34245124,2283.3,2283.2,4.37981]
[1726459935446,2.2826,2283.6,2283.2,4.37981]
[1726459935651,2.7658047,2283.4,2283.2,4.37981]
[1726459936951,2.7658047,2283.4,2283.2,8.75962]
[1726459937427,2.7658047,2283.4,2283.2,4.37981]
[1726459938530,2.7658047,2283.4,2283.3,4.37962]
[1726459938732,2.7658047,2283.4,2283.2,5.81695077]
[1726459938932,2.7658047,2283.4,2283.2,10.19665077]
[1726459939144,2.7658047,2283.4,2283.2,5.81693077]
[1726459939918,2.7658047,2283.4,2283.2,4.3797]
[1726459940552,2.76583099,2283.4,2283.3,8.75924]
[1726459940719,2.76583099,2283.6,2283.4,4.37943]
[1726459940930,4.34184276,2283.6,2283.5,4.37924]
[1726459941123,2.76583099,2283.7,2283.6,4.37905]
[1726459943247,2.66583099,2283.7,2283.6,4.37905]
[1726459945295,1.57594319,2283.8,2283.7,4.37885]
[1726459945477,4.80196397,2284.0,2283.9,8.75694]
[1726459945635,5.72570282,2284.3,2284.0,4.37823]
[1726459945957,1.57486919,2284.2,2284.1,6.20543774]
[1726459946160,1.57486919,2284.3,2284.2,4.37783]
[1726459946482,1.57486919,2284.4,2284.2,4.37783]
[1726459947177,1.57486919,2284.4,2284.3,4.3777]
[1726459947533,1.57486919,2284.4,2284.2,4.37789]
[1726459947969,1.52486919,2284.4,2284.2,4.37789]
[1726459948273,1.52486919,2284.4,2284.3,4.3777]
[1726459948437,1.52486919,2284.4,2284.3,6.20504774]
[1726459948628,1.52486919,2284.4,2284.3,12.94094774]
[1726459948833,0.0381403,2284.5,2284.4,4.37751]
[1726459949042,0.0381403,2284.5,2284.4,14.51415244]
[1726459949237,0.0381403,2284.5,2284.4,10.13664244]
[1726459949238,2.34158424,2284.5,2284.4,10.13664244]
[1726459949442,2.34158424,2284.5,2284.4,10.04909577]
[1726459949662,1.88084244,2284.5,2284.4,10.04909577]
[1726459949863,2.34158424,2284.5,2284.4,10.04909577]
[1726459950987,0.0381403,2284.5,2284.4,10.04909577]
[1726459951762,2.34158424,2284.5,2284.4,10.04909577]
[1726459951982,2.34158424,2284.5,2284.4,14.0022139]
[1726459953683,2.34158424,2284.5,2284.4,10.04909577]
[1726459953888,2.34158424,2284.5,2284.4,8.75502]
[1726459955582,2.34163724,2284.5,2284.4,8.75502]
[1726459960144,0.0381403,2284.5,2284.4,8.75502]
[1726459961122,2.34161036,2284.5,2284.4,8.75502]
[1726459962267,0.0381403,2284.5,2284.4,8.75502]
[1726459962481,0.0381403,2284.5,2284.4,10.69943881]
[1726459963398,0.22003741,2284.5,2284.4,10.69943881]
[1726459964273,2.06281157,2284.5,2284.4,10.69943881]
[1726459965281,2.06281157,2284.5,2284.4,14.65255694]
[1726459965695,2.06281157,2284.5,2284.4,16.98105694]
[1726459965997,0.22003741,2284.5,2284.4,16.98105694]
[1726459966207,1.60203974,2284.5,2284.4,16.98105694]
[1726459966560,1.60203974,2284.5,2284.4,21.35856694]
[1726459967394,1.14130276,2284.5,2284.4,21.35856694]
[1726459969905,1.14130276,2284.5,2284.4,21.90856694]
[1726459970066,1.14130276,2284.5,2284.4,22.80289074]
[1726459970264,0.95940565,2284.5,2284.4,22.80289074]
[1726459970704,0.95940565,2284.5,2284.4,22.80290544]
[1726459971068,1.14299857,2284.5,2284.4,22.80288704]
[1726459971267,1.14299857,2284.5,2284.4,21.90856694]
[1726459971494,1.14299857,2284.5,2284.4,22.80291653]
[1726459971806,1.14299857,2284.5,2284.4,21.90856694]
[1726459973199,1.14299857,2284.5,2284.4,22.80289771]
[1726459974005,1.14299857,2284.5,2284.4,20.67411073]
[1726459974374,1.14299857,2284.5,2284.4,19.77977996]
[1726459976303,1.14299857,2284.5,2284.4,19.22977996]
[1726459976510,1.14299857,2284.5,2284.4,14.85226996]
[1726459976511,1.60373555,2284.5,2284.4,14.85226996]
[1726459977174,1.14256392,2284.5,2284.4,14.85226996]
[1726459978377,1.14256392,2284.5,2284.4,19.22977996]
[1726459979570,1.14256392,2284.5,2284.4,19.77977996]
[1726459980174,1.14256392,2284.5,2284.4,23.67352503]
[1726459980175,0.0381403,2284.5,2284.4,23.67352503]
[1726459980375,0.22173322,2284.5,2284.4,25.01409492]
[1726459980610,0.0381403,2284.5,2284.4,25.01409492]
[1726459980805,0.22173322,2284.5,2284.4,23.67352503]
[1726459981786,0.22173322,2284.5,2284.4,22.77977996]
[1726459981983,0.0381403,2284.5,2284.4,22.77977996]
[1726459983029,0.22173322,2284.5,2284.4,22.77977996]
[1726459986176,1.38200233,2284.7,2284.6,17.50852]
[1726459986177,0.9208307,2284.7,2284.6,17.50852]
[1726459986381,2.30201973,2285.1,2284.9,2.2696]
[1726459986382,0.9208307,2285.0,2284.9,2.2696]
[1726459986640,1.38200233,2285.1,2284.9,2.2696]
[1726459986641,0.9208307,2285.1,2285.0,14.95341115]
[1726459986798,1.42014263,2285.2,2285.1,8.75234]
[1726459987239,0.95727607,2285.2,2285.1,8.75234]
[1726459987405,0.0381403,2285.2,2285.1,13.12851]
[1726459987614,0.0381403,2285.2,2285.1,15.46699537]
[1726459987933,0.0381403,2285.2,2285.1,19.41725002]
[1726459988501,0.0381403,2285.2,2285.1,21.75465002]
[1726459994709,0.0381403,2285.2,2285.1,15.46699537]
[1726459994941,0.0381403,2285.2,2285.1,19.41725002]
[1726459995647,0.0381403,2285.2,2285.1,21.67015002]
[1726459996205,0.0381403,2285.2,2285.1,22.12015002]
[1726460000552,0.0381403,2285.2,2285.1,19.86725002]
[1726460000923,0.0381403,2285.2,2285.1,14.94108002]
[1726460002559,0.0381403,2285.2,2285.1,10.99082537]
[1726460002866,0.21051892,2285.2,2285.1,10.99082537]
[1726460004063,0.21051892,2285.2,2285.1,14.94108002]
[1726460004265,0.21051892,2285.2,2285.1,12.60259465]
[1726460009047,0.0381403,2285.2,2285.1,12.60259465]
[1726460011553,0.0381403,2285.2,2285.1,4.27617]
[1726460011554,2.3633403,2285.2,2285.1,4.27617]
[1726460011779,2.53660515,2285.2,2285.1,4.27617]
[1726460012141,3.91860748,2285.2,2284.8,4.37663]
[1726460012370,2.3252,2285.0,2284.9,4.37655]
[1726460012683,2.49843321,2285.0,2284.9,4.37655]
[1726460014812,2.49843321,2285.0,2284.8,4.37663]
[1726460014939,2.4087,2284.9,2284.5,11.77722]
[1726460015135,2.4087,2284.8,2284.5,4.37722]
[1726460015337,3.32639451,2284.8,2284.5,4.3773]
[1726460015578,0.17323321,2284.7,2284.5,4.3773]
[1726460015878,3.32639451,2284.8,2284.5,4.3773]
[1726460016034,0.17236825,2284.6,2284.5,4.3773]
[1726460016234,3.32639451,2284.8,2284.5,4.3773]
[1726460016475,0.17236825,2284.6,2284.5,4.3773]
[1726460016683,3.32639451,2284.8,2284.5,4.3773]
[1726460016898,0.17236825,2284.6,2284.4,8.75482]
[1726460017190,3.32639451,2284.8,2284.4,8.75478]
[1726460017481,0.17236825,2284.7,2284.4,8.75478]
[1726460017689,2.4041,2284.6,2284.4,8.75476]
[1726460017982,2.57646825,2284.6,2284.4,8.75476]
[1726460018197,2.57646825,2284.6,2284.3,4.37769]
[1726460018494,2.4041,2284.6,2284.3,4.37769]
[1726460018706,0.17236825,2284.5,2284.3,4.37769]
[1726460019790,0.17236825,2284.5,2284.2,4.37778]
[1726460019981,2.4775,2284.4,2284.3,4.37768]
[1726460020557,2.64986825,2284.4,2284.3,4.37768]
[1726460022286,2.64986825,2284.4,2284.2,8.75551]
[1726460022491,2.64986825,2284.4,2284.3,4.3777]
[1726460024898,2.64986825,2284.4,2284.2,4.37773]
[1726460025991,2.64986825,2284.4,2284.0,4.37817]
[1726460026454,2.64986825,2284.4,2284.1,4.37808]
[1726460027467,2.64986825,2284.4,2284.0,8.75634]
[1726460027885,2.64986825,2284.4,2284.0,8.75633]
[1726460028130,2.64986825,2284.4,2284.0,4.37816]
[1726460028648,2.64986825,2284.4,2284.0,8.75635]
[1726460028944,2.64986825,2284.4,2284.0,4.37816]
[1726460029452,2.64986825,2284.4,2284.1,4.378]
[1726460029604,2.64986825,2284.4,2284.0,4.37816]
[1726460029803,2.64986825,2284.4,2284.0,8.75635]
[1726460030003,2.64986825,2284.4,2284.0,10.58173004]
[1726460030608,2.64986825,2284.4,2284.1,4.37804]
[1726460030827,2.64986825,2284.4,2284.2,6.20316004]
[1726460031042,0.17236825,2284.4,2284.3,8.7554]
[1726460031248,3.39819451,2285.0,2284.4,2.2547]
[1726460031539,1.88091446,2285.2,2283.8,3.0]
[1726460031540,2.5186403,2285.2,2284.9,6.20193004]
[1726460031765,2.5186403,2285.2,2285.0,4.37636]
[1726460034817,2.5186403,2285.2,2284.8,12.70503782]
[1726460036501,2.5186403,2285.2,2284.9,4.37652]
[1726460038386,2.5186403,2285.2,2284.9,5.251828]
[1726460038714,0.16470705,2285.1,2284.9,5.251828]
[1726460043421,0.16470705,2285.1,2285.0,4.37636]
[1726460044178,0.16470705,2285.1,2284.8,4.37656]
[1726460044179,0.16470705,2285.1,2284.8,8.75317]
[1726460044380,0.16470705,2285.1,2284.9,4.37645]
[1726460047421,0.16470705,2285.1,2284.9,4.37653]
[1726460049487,0.16470705,2285.1,2284.8,4.37656]
[1726460049884,0.16470705,2285.1,2284.8,8.7532]
[1726460050133,0.16470705,2285.1,2284.9,4.37655]
[1726460050281,0.16470705,2285.1,2284.8,4.37656]
[1726460050482,0.16470705,2285.1,2284.7,4.37684]
[1726460050687,0.16470705,2285.1,2284.8,4.37674]
[1726460053006,0.16470705,2285.1,2284.9,4.37652]
[1726460054961,0.16470705,2285.1,2284.9,4.37654]
[1726460056205,1.08240156,2285.1,2284.9,4.37654]
[1726460059688,1.08240156,2285.1,2284.9,4.37646]
[1726460059876,1.08240156,2285.1,2284.9,8.75291]
[1726460060191,1.08240156,2285.1,2284.9,4.37645]
[1726460060569,1.08240156,2285.1,2284.9,8.75292]
[1726460060769,1.08240156,2285.1,2284.9,4.37645]
[1726460061872,1.08240156,2285.1,2284.9,8.7529]
[1726460063094,1.08240156,2285.1,2284.9,8.75291]
[1726460064266,1.08240156,2285.1,2284.9,4.37645]
[1726460065668,1.08240156,2285.1,2284.9,4.37644]
[1726460066373,1.08240156,2285.1,2285.0,4.37636]
[1726460067265,1.08240156,2285.1,2284.9,4.37654]
[1726460068794,1.08240156,2285.1,2284.9,8.75301]
[1726460069151,1.08240156,2285.1,2284.9,4.37647]
[1726460069598,0.91769451,2285.0,2284.9,4.37647]
[1726460070051,1.08325856,2285.0,2284.9,4.37647]
[1726460070905,1.08325856,2285.0,2284.7,8.75355]
[1726460071060,1.08325856,2285.0,2284.7,4.37677]
[1726460071402,0.91769451,2284.9,2284.7,4.37677]
[1726460071696,3.36799451,2284.9,2284.7,4.37677]
[1726460071872,1.08323739,2284.8,2284.7,4.37677]
[1726460074175,1.54754521,2284.8,2284.7,4.37677]
[1726460076211,2.00831704,2284.8,2284.7,6.20093688]
[1726460077132,2.00831704,2284.8,2284.7,9.59404257]
[1726460077133,1.54555627,2284.8,2284.7,9.59404257]
[1726460077428,1.54589422,2284.8,2284.7,8.53623688]
[1726460077597,0.16554288,2284.8,2284.7,8.53623688]
[1726460078613,1.54588979,2284.8,2284.7,8.53623688]
[1726460078814,0.16554288,2284.8,2284.7,8.53623688]
[1726460079804,1.54583266,2284.8,2284.7,8.53623688]
[1726460080387,1.54583266,2284.8,2284.7,12.91317688]
[1726460080733,0.16554288,2284.8,2284.7,14.20449457]
[1726460080894,1.08571928,2284.8,2284.7,14.20449457]
[1726460081902,3.36801928,2284.8,2284.7,4.37677]
[1726460082102,4.29061704,2284.8,2284.7,4.37677]
[1726460082316,2.00831704,2284.8,2284.7,4.37677]
[1726460083395,1.54581888,2284.8,2284.7,4.37677]
[1726460084735,1.54580424,2284.8,2284.7,4.37677]
[1726460084932,2.00831704,2284.8,2284.7,4.37677]
[1726460085437,2.00831704,2284.8,2284.6,4.3771]
[1726460085600,1.38026301,2284.7,2284.6,4.3771]
[1726460086026,1.54634244,2284.7,2284.6,4.3771]
[1726460088224,1.54634244,2284.7,2284.6,8.75423]
[1726460089422,0.16607943,2284.7,2284.6,8.75423]
[1726460089604,1.08613955,2284.7,2284.6,8.75423]
[1726460089804,0.92006012,2284.7,2284.6,8.75423]
[1726460090136,1.08618185,2284.7,2284.6,8.75423]
[1726460090461,1.54638474,2284.7,2284.6,8.75423]
[1726460090732,0.16612173,2284.7,2284.6,8.75423]
[1726460090935,1.38026301,2284.8,2284.7,4.37694]
[1726460091239,1.54638474,2284.8,2284.7,4.37694]
[1726460091427,2.00889589,2284.8,2284.7,4.37694]
[1726460091745,1.54621963,2284.8,2284.7,4.37694]
[1726460093846,0.16612173,2284.8,2284.7,4.37694]
[1726460094221,2.00889589,2284.8,2284.7,4.37694]
[1726460094420,1.5462134,2284.8,2284.7,4.37694]
[1726460094644,11.55047812,2285.2,2284.7,4.37694]
[1726460094846,0.16058434,2284.8,2284.7,4.37694]
[1726460095046,8.7902603,2285.2,2284.7,4.37694]
[1726460095247,0.16058434,2284.8,2284.7,4.37694]
[1726460095819,8.7902603,2285.2,2284.7,4.37694]
[1726460096036,0.16058434,2284.8,2284.7,4.37694]
[1726460096244,11.55045377,2285.2,2284.7,4.37694]
[1726460096432,0.16058434,2284.8,2284.7,4.37694]
[1726460096656,11.55045377,2285.2,2284.7,5.501924]
[1726460096960,11.55045377,2285.2,2284.7,4.37694]
[1726460097253,0.16058434,2285.1,2284.7,4.37694]
[1726460097757,0.7023,2285.0,2284.7,4.37694]
[1726460098361,0.16058434,2284.9,2284.7,4.37694]
[1726460099256,0.16058434,2284.9,2284.6,6.8729]
[1726460099460,0.16058434,2284.9,2284.6,4.3771]
[1726460099624,0.16058434,2284.9,2284.6,4.37704]
[1726460100141,0.16058434,2284.9,2284.6,8.75404]
[1726460100460,0.7023,2284.7,2284.3,11.77769]
[1726460100651,0.7023,2284.7,2284.3,4.37769]
[1726460100846,0.16045742,2284.6,2284.2,6.75508]
[1726460101763,0.16045742,2284.6,2284.2,8.75561]
[1726460101967,0.16045742,2284.6,2284.2,4.37779]
[1726460102938,0.16045742,2284.6,2284.3,4.3776]
[1726460103169,0.16045742,2284.6,2284.4,4.37748]
[1726460109587,0.16045742,2284.6,2284.2,6.20205688]
[1726460109758,0.7023,2284.5,2284.1,4.37806]
[1726460110174,0.16045742,2284.4,2284.1,4.37806]
[1726460110483,0.16045742,2284.4,2284.0,4.37815]
[1726460110638,4.53806742,2284.4,2283.9,9.7984]
[1726460110845,0.7023,2284.3,2284.0,4.37827]
[1726460111068,0.7023,2284.3,2284.0,8.24037157]
[1726460111284,4.37734,2284.5,2284.0,8.24037157]
[1726460111443,0.16045742,2284.2,2284.0,8.24037157]
[1726460111645,5.07964,2284.5,2284.0,8.24037157]
[1726460111945,5.07964,2284.5,2284.1,4.37806]
[1726460112260,0.16045742,2284.4,2284.2,4.13396688]
[1726460112587,0.16045742,2284.4,2284.2,8.51169688]
[1726460112745,3.7023,2284.7,2284.2,8.59924538]
[1726460112943,4.37652,2285.0,2284.5,4.3772]
[1726460112944,0.16045742,2284.6,2284.5,4.3772]
[1726460113168,4.37647,2285.0,2284.5,6.687]
[1726460113447,0.16045742,2284.9,2284.5,6.687]
[1726460114187,0.16045742,2284.9,2284.6,4.37709]
[1726460114493,0.0381403,2285.2,2284.7,4.37678]
[1726460114798,0.0381403,2285.2,2284.8,6.20089688]
[1726460117185,1.37852402,2284.9,2284.8,6.20089688]
[1726460117371,1.37852402,2285.0,2284.9,4.37655]
[1726460117579,1.37851751,2285.0,2284.9,4.37655]
[1726460118499,1.37851751,2285.0,2284.8,5.43447769]
[1726460118795,0.91897605,2284.9,2284.8,5.43447769]
[1726460118967,1.37851751,2285.0,2284.9,4.37655]
[1726460119292,1.37851751,2285.0,2284.8,5.43447769]
[1726460119624,1.37851751,2285.0,2284.8,5.43442769]
[1726460120694,0.91893748,2284.9,2284.8,5.43442769]
[1726460120851,1.37851751,2285.0,2284.8,5.43442769]
[1726460121359,1.37851751,2284.9,2284.8,5.43442769]
[1726460121561,1.37851751,2285.0,2284.8,5.43441769]
[1726460121785,0.9189358,2284.9,2284.8,5.43441769]
[1726460122991,1.37851751,2285.0,2284.8,9.81106769]
[1726460122992,0.9189358,2285.0,2284.8,9.81106769]
[1726460123488,0.9189358,2285.0,2284.9,7.81565677]
[1726460123690,0.9189358,2285.1,2285.0,4.37636]
[1726460123875,0.9189358,2285.1,2285.0,6.20052688]
[1726460125074,0.9189358,2285.1,2285.0,4.37636]
[1726460128368,1.0742684,2285.1,2285.0,4.37636]
[1726460133572,0.1553326,2285.1,2285.0,4.37636]
[1726460134701,1.0742684,2285.1,2285.0,4.37636]
[1726460135711,0.1553326,2285.1,2285.0,4.37636]
[1726460136503,0.1553326,2285.1,2284.9,4.37655]
[1726460136712,1.0742684,2285.1,2284.9,4.37655]
[1726460137674,0.1553326,2285.1,2284.9,4.37655]
[1726460138207,0.1553326,2285.1,2284.9,8.75302]